Cogmind - Beta 14 --- EXPLORER MODE // 2024.09.15 @ 19:10:26 Player: Grzyby Result: Destroyed by Y-54 Guardian with Gatling Laser Performance ------------- Evolutions (4) 2000 Regions Visited (6) 1200 Robots Destroyed (35) 175 Value Destroyed (1129) 1129 Prototype IDs (2) 40 Alien Tech Used (0) 0 Bonus (300) 300 TOTAL SCORE: 4844 Bonus ------- Registered with UFD 300 Cogmind --------- Core Integrity 0/850 Matter 14/300 Energy 100/100 System Corruption 1% Temperature Cool (18) Movement Core (450) Ox8 Location -6/Factory Parts ------- > --- POWER (3) -------- Fusion Compressor > --- PROPULSION (4) --- (None) > --- UTILITY (6) ------ Large Storage Unit > --- WEAPON (3) ------- (None) > --- INVENTORY (15) --- (None) Peak State ------------ > --- POWER ------------ Deuterium Engine > --- PROPULSION ------- Light Treads Spiked Treads Carbon-fiber Leg > --- UTILITY ---------- Large Storage Unit Experimental Sensor Array Seismic Detector Targeting Computer Propulsion Shielding Utility Shielding > --- WEAPON ----------- Flak Cannon Advanced Assault Cannon > --- INVENTORY -------- Subdweller Power Source Light Fission Core Aluminum Leg Aluminum Leg Scrap Suit Improved Grenade Launcher Mining Laser [Rating: 32] Favorites ----------- Power Light Nuclear Core Engine Deuterium Engine Power Core Light Nuclear Core Propulsion Light Treads Treads Light Treads Leg Carbon-fiber Leg Utility Targeting Computer Device Seismic Detector Storage Medium Storage Unit Processor Targeting Computer Protection Core Shielding Weapon Grenade Launcher Energy Gun Heavy EM Pulse Gun Ballistic Gun Light Assault Rifle Ballistic Cannon Advanced Assault Cannon Launcher Grenade Launcher Special Weapon Mining Laser Build | -11 -10 -10 -10 -8 -8 -6 ------- Run | Yrd Mat Min Sub Rec Scr Fac Slots Evolved 9 | . 1 . . . . 8 Power 2 | . . . . . . 2 Propulsion 2 | . . . . . . 2 Utility 4 | . 1 . . . . 3 Weapon 1 | . . . . . . 1 Parts Attached 50 | 7 5 6 5 1 5 21 Power 9 | 1 2 . 1 . 1 4 Engine 6 | 1 2 . . . 1 2 Core 3 | . . . 1 . . 2 Reactor . | . . . . . . . Propulsion 11 | 2 1 . 1 . . 7 Treads 8 | 2 1 . 1 . . 4 Leg 3 | . . . . . . 3 Wheel . | . . . . . . . Hover . | . . . . . . . Flight . | . . . . . . . Utility 10 | 2 1 2 . . 1 4 Device 3 | . . 1 . . . 2 Storage 2 | 1 . . . . 1 . Processor 2 | . 1 1 . . . . Hackware . | . . . . . . . Protection 3 | 1 . . . . . 2 Artifact . | . . . . . . . Weapon 20 | 2 1 4 3 1 3 6 Energy Gun 5 | . 1 . 2 . 1 1 Energy Cannon . | . . . . . . . Ballistic Gun 3 | 2 . 1 . . . . Ballistic Cannon 3 | . . . . . . 3 Launcher 4 | . . 1 . 1 1 1 Special Weapon 5 | . . 2 1 . 1 1 Impact Weapon . | . . . . . . . Slashing Weapon . | . . . . . . . Piercing Weapon . | . . . . . . . Special Melee Weapon . | . . . . . . . Unidentified Prototypes 1 | . . . . . . 1 Parts Lost 20 | . . . . . . 20 Power 4 | . . . . . . 4 Propulsion 5 | . . . . . . 5 Utility 6 | . . . . . . 6 Weapon 5 | . . . . . . 5 Highest Loss Streak 9 | . . . . . . 9 To Critical Strikes . | . . . . . . . Average Slot Usage (%) 95 | . 94 100 100 100 100 59 Engine 6 | . 12 12 1 . 6 5 Core 4 | . . . 10 12 5 . Treads 23 | . 25 25 25 25 25 9 Device 10 | . . 9 12 12 12 11 Storage 11 | . 12 12 12 12 12 6 Processor 10 | . 7 12 12 12 12 5 Protection 2 | . 12 2 . . . 6 Energy Gun 8 | . 8 5 1 12 12 1 Ballistic Gun 4 | . 16 10 7 . . . Launcher 6 | . . 1 12 12 8 . Special Weapon 2 | . . 6 2 . 3 1 Peak Build Rating 32 | 7 9 10 12 13 17 32 Average Rating 13 | 5 8 9 11 12 14 26 On Entrance 9 | . 7 9 10 12 13 15 Naked Turns . | . . . . . . . Heaviest Build 47 | 16 17 19 21 21 39 47 Greatest Support 40 | 40 40 40 40 40 40 40 Greatest Overweight (x) 12 | 4 . . . . . 12 Average Overweight (x) . | . . . . . . 1 Largest Inventory Capacity 15 | 10 10 10 10 10 15 15 Average Capacity 11 | 9 10 10 10 10 11 15 Most Carried 12 | 7 10 10 10 10 12 12 Average Carried 9 | 3 8 9 9 9 10 7 Final Capacity 15 | 10 10 10 10 10 15 15 Final Carried 12 | 7 10 10 10 10 12 . Class Distribution -------------------- 97% | Hacker-Mutant Dominant Class ---------------- Hacker-Mutant | -10/Materials Hacker-Mutant | -10/Mines Hacker-Mutant | -10/Subcaves Hacker-Mutant | -8/Recycling Hacker-Mutant | -8/Scraptown Hacker-Mutant | -6/Factory Resources | -11 -10 -10 -10 -8 -8 -6 ----------- Run | Yrd Mat Min Sub Rec Scr Fac Matter Collected 924 | 265 85 84 95 123 47 225 Remotely . | . . . . . . . Salvage Created 952 | . 339 177 86 170 . 180 Parts 50 | . 23 17 3 2 . 5 Haulers Intercepted . | . . . . . . . Recyclers Shooed 2 | . 1 . . . . 1 Parts Field Recycled . | . . . . . . . Retrieved Matter . | . . . . . . . Parts Self-Destructed . | . . . . . . . Prevented . | . . . . . . . Kills | -11 -10 -10 -10 -8 -8 -6 ------- Run | Yrd Mat Min Sub Rec Scr Fac Combat Hostiles Destroyed 28 | . 10 4 4 1 . 9 Guns 15 | . 10 4 1 . . . Cannons 7 | . . . . . . 7 AOE 6 | . . . 3 1 . 2 Classes Destroyed 11 | . 3 1 2 1 . 4 Worker 1 | . . . . . . 1 Builder 1 | . . 1 . . . . Recycler 3 | . 1 . . 2 . . Turret 2 | . . . 2 . . . Swarmer 8 | . 6 . 2 . . . Grunt 13 | . 4 4 . . . 5 Duelist 1 | . . . . . . 1 Sentry 1 | . . . . 1 . . Hunter 2 | . . . . . . 2 Programmer 1 | . . . . . . 1 Subdweller 2 | . . . 2 . . . Best Kill Streak 5 | . 5 2 2 2 . 3 Combat Bots Only 4 | . 4 2 2 1 . 3 Max Kills in Single Turn 2 | . 1 1 2 1 . 1 Gunslinging . | . . . . . . . Exploded 1 | . . . 1 1 . 1 Melee . | . . . . . . . Uniques/NPCs Destroyed . | . . . . . . . Combat | -11 -10 -10 -10 -8 -8 -6 -------- Run | Yrd Mat Min Sub Rec Scr Fac Hostile Shots Fired 568 | . 51 22 49 6 . 440 Missed 198 | . 15 11 25 2 . 145 Damage Taken 3358 | . 208 91 149 35 . 2875 Core 941 | . 43 16 17 9 . 856 Absorbed by Shields . | . . . . . . . Redirected to Shielding 108 | . 7 . . . . 101 Ignored by Resistances 2046 | . 139 58 104 23 . 1722 Regen/Repaired (Parts) 180 | . . . . . . 180 Core Remaining (%) 83 | 100 . . . . 66 . Volleys Fired 102 | . 28 19 17 3 2 33 Largest 3 | . 2 2 2 2 1 3 Hottest 137 | . 70 100 100 80 100 137 Shots Fired 183 | . 56 30 25 6 2 64 Gun 97 | . 56 22 11 3 . 5 Cannon 50 | . . . . . . 50 Launcher 22 | . . . 11 3 . 8 Special 14 | . . 8 3 . 2 1 Kinetic 104 | . 41 11 2 . . 50 Thermal 52 | . 15 19 12 3 2 1 Explosive 22 | . . . 11 3 . 8 Electromagnetic 5 | . . . . . . 5 Robot Hit Streak 34 | . 13 25 34 16 . 29 Robot Miss Streak 3 | . 2 . 1 . . 3 Penetration Max . | . . . . . . . Secondary Targets 2 | . 1 1 . . . . Max Gunslinging Chain 1 | . 1 1 . . . . Shots Hit Robots 147 | . 43 20 19 6 . 59 Core Hits 97 | . 20 10 13 5 . 49 Critical Kills . | . . . . . . . Critical Parts Destroyed . | . . . . . . . Critical Strikes 3 | . 1 . . . . 2 Burn 1 | . 1 . . . . . Blast 2 | . . . . . . 2 Melee Attacks . | . . . . . . . Impact . | . . . . . . . Slashing . | . . . . . . . Piercing . | . . . . . . . Sneak Attacks . | . . . . . . . Combat Hostiles . | . . . . . . . Follow-up Attacks . | . . . . . . . Damage Inflicted 2933 | . 377 262 430 171 . 1693 Guns 854 | . 373 257 124 38 . 62 Cannons 1180 | . . . . . . 1180 Explosions 845 | . . . 306 118 . 421 Melee . | . . . . . . . Ramming 30 | . 4 5 . 15 . 6 Kinetic 1521 | . 199 120 22 . . 1180 Thermal 475 | . 174 137 102 38 . 24 Explosive 845 | . . . 306 118 . 421 Electromagnetic 62 | . . . . . . 62 Impact . | . . . . . . . Slashing . | . . . . . . . Piercing . | . . . . . . . Highest Corruption 1 | . . . . . . 1 Average Corruption 1 | . . . . . . 1 Corruption Purged . | . . . . . . . Corruption Blocked . | . . . . . . . Effects 2 | . . . . . . 2 Matter Fused 1 | . . . . . . 1 Data Loss (minor) 1 | . . . . . . 1 Overload Shots . | . . . . . . . Overflow Damage 17 | . . . . . . 17 Projectiles 3 | . . . . . . 3 Explosions 14 | . . . . . . 14 Melee . | . . . . . . . Knockbacks 30 | . . . . 1 . 29 Impact 1 | . . . . 1 . . Kinetic 28 | . . . . . . 28 Secondary 1 | . . . . . . 1 Self-Inflicted Damage 72 | . . . 45 . . 27 Shots 7 | . . . 5 . . 2 Rammed 10 | . 1 2 . 1 . 6 Targets Rammed 12 | . 1 3 . 2 . 6 Kicked . | . . . . . . . Crushed 2 | . . 1 . 1 . . Highest Temperature 139 | . 139 93 6 81 48 127 Average Temperature 36 | . 53 28 6 44 25 33 Received Heat Transfer 1681 | . 102 81 126 18 . 1354 Siege Activations . | . . . . . . . Robots Corrupted . | . . . . . . . Combat Hostiles . | . . . . . . . Parts Fried . | . . . . . . . Impact Corruptions . | . . . . . . . Robots Melted . | . . . . . . . Combat Hostiles . | . . . . . . . Parts Melted 4 | . 1 3 . . . . Heat Transferred 1456 | . 592 407 296 111 . 50 Parts Sabotaged . | . . . . . . . Parts Stolen . | . . . . . . . Parts Stripped . | . . . . . . . Power Chain Reactions . | . . . . . . . Alert | -11 -10 -10 -10 -8 -8 -6 ------- Run | Yrd Mat Min Sub Rec Scr Fac Peak Influence 165 | . 165 115 . 39 . 130 Initial 24 | . . . . 24 . . Average 28 | . 63 16 . 14 . 26 Maximum Alert Level . | . . . . . . . Low Security (%) 100 | 100 100 100 . 100 . 100 Level 1 . | . . . . . . . Level 2 . | . . . . . . . Level 3 . | . . . . . . . Level 4 . | . . . . . . . Level 5 . | . . . . . . . High Security . | . . . . . . . Max Security . | . . . . . . . Squads Dispatched 6 | . . . . . . 6 Investigation 1 | . . . . . . 1 Extermination 1 | . . . . . . 1 Reinforcement 4 | . . . . . . 4 Assault . | . . . . . . . Garrison . | . . . . . . . Intercept . | . . . . . . . Searches Triggered . | . . . . . . . Construction Impeded 2 | . . . . . . 2 Haulers Reinforced . | . . . . . . . Active Scanning Responses . | . . . . . . . Cargo Convoy Interrupts . | . . . . . . . Stealth | -11 -10 -10 -10 -8 -8 -6 --------- Run | Yrd Mat Min Sub Rec Scr Fac Distress Signals . | . . . . . . . Communications Jammed . | . . . . . . . Distress Signals . | . . . . . . . Times Spotted 50 | . 16 4 8 1 . 21 Peak Tracking Total 7 | . 3 2 2 1 . 7 Tactical Retreats 3 | . 1 . 1 . . 1 Traps | -11 -10 -10 -10 -8 -8 -6 ------- Run | Yrd Mat Min Sub Rec Scr Fac Traps Triggered 2 | . . . . . . 2 Indirectly . | . . . . . . . Trap Hack Attempts . | . . . . . . . Triggered . | . . . . . . . Disarmed . | . . . . . . . Reprogrammed . | . . . . . . . Reused . | . . . . . . . Traps Extracted . | . . . . . . . Installed . | . . . . . . . Triggered . | . . . . . . . Machines | -11 -10 -10 -10 -8 -8 -6 ---------- Run | Yrd Mat Min Sub Rec Scr Fac Machines Disabled 3 | . . . 1 . . 2 Max in Single Turn 1 | . . . 1 . . 1 Machines Repaired . | . . . . . . . Machines Dismantled . | . . . . . . . Machines Sabotaged . | . . . . . . . Overloaded Fab Kills . | . . . . . . . Hacking | -11 -10 -10 -10 -8 -8 -6 --------- Run | Yrd Mat Min Sub Rec Scr Fac Machines Accessed 14 | . 2 1 1 2 6 2 Terminals 3 | . 2 . . . . 1 Fabricators . | . . . . . . . Repair Stations 1 | . . . . . . 1 Recycling Units . | . . . . . . . Scanalyzers . | . . . . . . . Garrison Access . | . . . . . . . Total Hacks 80 | . 2 1 4 25 44 4 Successful 79 | . 2 1 4 25 44 3 Failed 1 | . . . . . . 1 Catastrophic . | . . . . . . . Database Lockouts . | . . . . . . . Manual . | . . . . . . . Terminals 3 | . 2 . . . . 1 Fabricators . | . . . . . . . Repair Stations 3 | . . . . . . 3 Recycling Units . | . . . . . . . Scanalyzers . | . . . . . . . Garrison Access . | . . . . . . . Terminal Hacks 77 | . 2 1 4 25 44 1 Record 73 | . 1 . 4 24 44 . Open Door 1 | . . 1 . . . . Open DSF 1 | . . . . . . 1 Locate Traps 1 | . 1 . . . . . Release Object 1 | . . . . 1 . . Fabricator Hacks . | . . . . . . . Repair Station Hacks 2 | . . . . . . 2 Scan Component 1 | . . . . . . 1 Repair 1 | . . . . . . 1 Recycling Unit Hacks . | . . . . . . . Scanalyzer . | . . . . . . . Garrison Access Hacks . | . . . . . . . Unauthorized Hacks . | . . . . . . . Terminals . | . . . . . . . Fabricators . | . . . . . . . Repair Stations . | . . . . . . . Recycling Units . | . . . . . . . Scanalyzers . | . . . . . . . Garrison Access . | . . . . . . . Data Cores Recovered . | . . . . . . . Used . | . . . . . . . Hacking Detections 1 | . . . . . . 1 Full Trace Events 1 | . . . . . . 1 Feedback Events . | . . . . . . . Feedback Blocked . | . . . . . . . Robot Schematics Acquired . | . . . . . . . Robots Built . | . . . . . . . Authchips . | . . . . . . . Time . | . . . . . . . Total Robot Build Rating . | . . . . . . . Part Schematics Acquired . | . . . . . . . Parts Built . | . . . . . . . Authchips . | . . . . . . . Time . | . . . . . . . Total Part Build Rating . | . . . . . . . Parts Repaired 1 | . . . . . . 1 Time 32 | . . . . . . 32 Parts Recycled . | . . . . . . . Recycled Matter . | . . . . . . . Retrieved Matter . | . . . . . . . Retrieved Components . | . . . . . . . Parts Scanalyzed . | . . . . . . . Part Schematics Acquired . | . . . . . . . Parts Damaged . | . . . . . . . Bothacking | -11 -10 -10 -10 -8 -8 -6 ------------ Run | Yrd Mat Min Sub Rec Scr Fac Used RIF Installer . | . . . . . . . Robots Hacked . | . . . . . . . Non-combat . | . . . . . . . Combat . | . . . . . . . Robot Hacks Applied . | . . . . . . . Relay Couplers Released . | . . . . . . . Fabnet Peak Effective % . | . . . . . . . Robots Rewired . | . . . . . . . Allies Hacked . | . . . . . . . Hacks Repelled . | . . . . . . . Allies | -11 -10 -10 -10 -8 -8 -6 -------- Run | Yrd Mat Min Sub Rec Scr Fac Total Allies . | . . . . . . . Largest Group . | . . . . . . . Highest-Rated Group . | . . . . . . . Highest-Rated Ally . | . . . . . . . Total Orders . | . . . . . . . Ally Attacks . | . . . . . . . Total Damage . | . . . . . . . Kills . | . . . . . . . Allies Corrupted . | . . . . . . . Allies Melted . | . . . . . . . Intel | -11 -10 -10 -10 -8 -8 -6 ------- Run | Yrd Mat Min Sub Rec Scr Fac Robot Analysis Total . | . . . . . . . Derelict Logs Recovered 2 | . . . 1 . 1 . Drone Launches . | . . . . . . . Drone Recoveries . | . . . . . . . Exploration | -11 -10 -10 -10 -8 -8 -6 ------------- Run | Yrd Mat Min Sub Rec Scr Fac Turns Passed 11363 | 129 1252 1714 1091 1134 4825 1218 Spaces Moved 6580 | 65 720 1020 647 699 3002 427 Core 28 | 18 . . . . . 10 Treads 6510 | 47 720 1020 647 699 3002 375 Legs 42 | . . . . . . 42 Wheels . | . . . . . . . Hover . | . . . . . . . Flight . | . . . . . . . Fastest Speed 50 | 50 160 160 160 160 160 160 Average Speed 165 | 172 160 160 160 160 160 250 Slowest Speed 650 | 250 160 160 160 160 160 650 Overloaded Moves . | . . . . . . . Propulsion Burnouts . | . . . . . . . Robots Hopped . | . . . . . . . Cave-ins Triggered . | . . . . . . . Exploration Rate (%) 56 | 4 78 102 30 78 93 8 Regions Visited 6 Branch Regions 4 Pre-discovered Areas 3 | . . . 1 . 2 . Known Exits Taken 6 | 1 1 1 1 1 1 . Unknown Exits Taken . | . . . . . . . Scrap Searched 7 | . . 1 3 . 3 . Spaces Dug 8 | . . 8 . . . . Terrain Destroyed 117 | . . 8 47 13 . 49 Melee . | . . . . . . . Projectile 10 | . . 8 . . . 2 AOE 107 | . . . 47 13 . 47 Terrain Rammed . | . . . . . . . Walls Destroyed . | . . . . . . . Machines Disabled . | . . . . . . . Actions | -11 -10 -10 -10 -8 -8 -6 --------- Run | Yrd Mat Min Sub Rec Scr Fac Total 6803 | 78 774 1053 671 709 3020 498 Wait 24 | . 11 2 . . . 11 Move 6574 | 64 719 1019 646 698 3001 427 Hop . | . . . . . . . Pick Up 20 | 7 5 2 1 1 4 . Fast Attach 17 | 7 1 . . . 1 8 Attach 13 | . 1 1 . . . 11 Detach 1 | . 1 . . . . . Swap 20 | . 3 5 5 1 4 2 Drop 17 | . 4 2 2 2 7 . Fire 102 | . 28 19 17 3 2 33 Melee . | . . . . . . . Ram . | . . . . . . . Kick . | . . . . . . . Crush 12 | . 1 3 . 2 . 6 Escape Stasis . | . . . . . . . Rewire 3 | . . . . 2 1 . Trap . | . . . . . . . Miscellaneous . | . . . . . . . Route ------- -11/Scrapyard -10/Materials (discovered 3 exits: *Mat x2 / *Min) -10/Mines (discovered 3 exits: *Mat x2 / *Sub) -10/Subcaves -8/Recycling -8/Scraptown (discovered 2 exits: *Fac x2) -6/Factory History --------- Turn | Location | Event 39 | -11/Scrapyard | Identified exit to Materials 39 | -11/Scrapyard | Discovered exit to Materials (range 16) 130 | -11/Scrapyard | Entered Materials 130 | -10/Materials | Evolved 1 slot: Utility x1 302 | -10/Materials | Build established: Hacker-Mutant 409 | -10/Materials | Identified exit to Materials 409 | -10/Materials | Discovered exit to Materials (range 15) 752 | -10/Materials | Discovered exit to Materials (range 16) 1332 | -10/Materials | Identified exit to Mines 1332 | -10/Materials | Discovered exit to Mines (range 12) 1382 | -10/Materials | Entered Mines 1864 | -10/Mines | Discovered exit to Materials (range 11) 2115 | -10/Mines | Found the Drone Emporium 2214 | -10/Mines | Discovered exit to Materials (range 6) 2302 | -10/Mines | YI-UF0 nonchalantly dropped a Grenade Launcher on the ground 2954 | -10/Mines | Found a damaged Exp. Sensor Array with a note attached 2959 | -10/Mines | Found Prototype Device 3072 | -10/Mines | Identified exit to Subcaves 3072 | -10/Mines | Discovered exit to Subcaves (range 10) 3096 | -10/Mines | Entered Subcaves 3422 | -10/Subcaves | Visited Clippyterm 3427 | -10/Subcaves | Learned Factory garrison access intel 3635 | -10/Subcaves | Visited triangular shrine 3804 | -10/Subcaves | Shifting Twisted Machinery released Spk. Treads 3814 | -10/Subcaves | Shifting Twisted Machinery released Mak. Flight Unit 4082 | -10/Subcaves | Learned location of Storage (-8) 4084 | -10/Subcaves | Identified exit to Recycling 4084 | -10/Subcaves | Discovered exit to Recycling (range 7) 4187 | -10/Subcaves | Entered Recycling 4188 | -8/Recycling | Met a Zionite searching for Scraptown 5229 | -8/Recycling | Scanned before Scraplab entrance 5257 | -8/Recycling | Entered Scraplab 5317 | -8/Recycling | Identified exit to Scraptown 5317 | -8/Recycling | Discovered exit to Scraptown (range 3) 5321 | -8/Recycling | Entered Scraptown 5337 | -8/Scraptown | Heard Great Nut preacher, LISTEN AND RECITE! 5737 | -8/Scraptown | Identified exit to Factory 5737 | -8/Scraptown | Discovered exit to Factory (range 3) 5870 | -8/Scraptown | Scanned Subdweller tech in exchange for log data 5877 | -8/Scraptown | Learned location of Warlord (-4) 5944 | -8/Scraptown | Visited Junk Repository 6040 | -8/Scraptown | Visited The Evicted 6067 | -8/Scraptown | Visited UFD Registry 6597 | -8/Scraptown | Visited SPCMW 6643 | -8/Scraptown | Visited Spacefarers 6781 | -8/Scraptown | Visited CPS Storage 6903 | -8/Scraptown | Registered with UFD as "Toolmind" 7032 | -8/Scraptown | Visited Curators Association 7131 | -8/Scraptown | Visited Scrapoid Pod Storage 7312 | -8/Scraptown | Visited Science Testing Area 7473 | -8/Scraptown | Visited Research Penetration Think Tank 7519 | -8/Scraptown | Visited Supply Room 7603 | -8/Scraptown | Visited Supply Room 7679 | -8/Scraptown | Visited Junk Repository 7775 | -8/Scraptown | Visited Abandonware Association 7804 | -8/Scraptown | Learned abandonware demo "REVENGE.EXE" 7804 | -8/Scraptown | Learned abandonware demo "TRNCOAT.EXE" 7862 | -8/Scraptown | Visited Scrap Suit Storage 8060 | -8/Scraptown | Discovered exit to Factory (range 3) 8490 | -8/Scraptown | Found Scrap Suit 9285 | -8/Scraptown | Visited Cyclists 9333 | -8/Scraptown | Entered Cyclist Reading Room 9378 | -8/Scraptown | Visited TADAMA 10146 | -8/Scraptown | Entered Factory 10146 | -6/Factory | Evolved 8 slots: Power x2, Propulsion x2, Utility x3, Weapon x1 10147 | -6/Factory | Loaded intel: 3 garrison access locations 10148 | -6/Factory | Identified Exp. Sensor Array 10900 | -6/Factory | Repaired Spk. Treads 11172 | -6/Factory | Lost 5 parts (1p1n1u2w) 11305 | -6/Factory | Lost 9 parts (3p2n2u2w) 11306 | -6/Factory | Spotted B-75 Beast 11332 | -6/Factory | Core integrity fell below 50% 11357 | -6/Factory | Core integrity fell below 20% 11364 | -6/Factory | Destroyed by Y-54 Guardian with Gatling Laser Last Messages --------------- Aluminum Leg destroyed. Penetrated by Slug. Aluminum Leg destroyed. Scrap Suit destroyed. Slug penetrates Wall. Penetrated by Slug. System corrupted: Matter fused (-10). A-15 Conveyor suffers critical hit (Burn). U-05 Engineer builds a Wall. Acquired 3 matter. Penetrated by Slug. Targeting Computer destroyed. Penetrated by Slug. U-05 Engineer builds a Door. U-05 Engineer builds a Wall. Critical hit (Burn: +37). U-05 Engineer builds a Wall. Slug penetrates Wall. Acquired Fusion Compressor. U-05 Engineer builds a Wall. Map ----- +----------------------------------------------------+ | #""" # ###############?????# #?????????? | | # # #???????????????????# ########### | | # # #???????????????????# # # | | # *= # #???????????????????# # # | | #=* # #???????????????????# # # | | / R= # #????????????######## # # | | # "" # #????????????+ + # | | # = # #????????????# # # | | ######### #????????????# # # | | #????????????+ # # | | #????????????##### ^^ # # | | """"""" #????????????????# ^ ###### | | """"""" +????????????????# #????# = | | """"""" #????????????????# #????# | | """"""" "????????????????# ###### | | ################## ##T ## | | """"""" % % | | """"""" %[ | | """"""" | | """"""" BB % | | BBu | | """ """"""" #######;;##g####################+## | | """"""" #????# u g #????????????? | | """""" #????# % #?????????????? " | | ""??"" #?#### ]* Y #???????????????" | | ??? g/ ]*@ ! #???????????????? | | ??? #?#### ]* #???????????????? | | ?? #????# """ #???????????????? | | #######??## # ?????# "" """ #???????????????? | | ??????????# ? ?????# "" """ #???????????????? | | ???????????##? ?????# "T #??????????????? | | ?????????????? ?????# "" ##??????????????? | | ????????????????????#?"" #???????????????? | | ?????????????????????? ?? #???????????????? | | ??????????????????????######????##???????????????? | | ?????????????????????????????????????????????????? | | ?????????????????????????????????????????????????? | | ?????????????????????????????????????????????????? | | ?????????????????????????????????????????????????? | | ?????????????????????????????????????????????????? | | ?????????????????????????????????????????????????? | | ?????????????????????????????????????????????????? | | ?????????????????????????????????????????????????? | | ?????????????????????????????????????????????????? | | ?????????????????????????????????????????????????? | | ?????????????????????????????????????????????????? | | ?????????????????????????????????????????????????? | | ?????????????????????????????????????????????????? | | ?????????????????????????????????????????????????? | | ?????????????????????????????????????????????????? | +----------------------------------------------------+ Best States ------------- Heat Dissipation 37 Energy Generation 22 Energy Capacity 275 Matter Stores 300 Matter Capacity 300 Sight Range 16 Robot Scan Range 20 Terrain Scan Density 10 Resistance: KI 35 Resistance: TH 35 Resistance: EX 35 Resistance: EM 35 Resistance: I 35 Resistance: S 35 Resistance: P 35 Core Shielding 20 Propulsion Shielding 33 Utility Shielding 33 Evasion (%) 40 Targeting Accuracy 5 Recoil Reduction 2 Offensive Hacking 20 Item Schematics ----------------- None Robot Schematics ------------------ None Fabricated ------------ Nothing Alien Tech Used ----------------- None Achievements -------------- None Challenges ------------ None Game ------ Seed SchematicGyrokineticDrive Manual? 0 Play Time 01:36:41 Cumulative 15.3 hours Start 2024.09.15 @ 16:38:55 End 2024.09.15 @ 19:10:26 Sessions 3 Manual Loads 0 Difficulty Explorer Special Mode None Game No. 8 Rogue 0 Adventurer 0 Explorer 8 Win Type - Total 0 Types 0/0/0/0/0/0/0/0/0 Lore% 22 Gallery% 21 Achievement% 19 Wizard Run 0 Options --------- Layout 2 ASCII 0 Keyboard 1 Movement Vi Keybinds 0 Fullscreen 1 Font 24/Smallcaps Map View 50x44 Zoom Use 0% Tactical HUD 0 Map Filters NONE Filters NONE Steam 0 RUN: 00bdd682-fd2a-4911-903e-73219557738c